fUSD/lending_fUSD_20250310
["ID","MTS","AMOUNT","RATE_DAILY","PERIOD"]
[355837282,1741633365398,-353.84006558,0.00037702,30]
[355837283,1741633365437,-353.84006558,0.00037996,30]
[355837284,1741633365477,-353.84006558,0.00038119,30]
[355837285,1741633365519,-353.84006558,0.0003855,30]
[355837286,1741633365563,-353.84006558,0.00038691,30]
[355837287,1741633365607,-353.84006558,0.00039056,30]
[355837288,1741633365649,-353.84006558,0.00039342,30]
[355837289,1741633365692,-353.84006558,0.0003967,30]
[355837290,1741633365733,-353.84006587,0.00039993,30]
[355837291,1741633365781,-835.0,0.00040746,60]
[355837292,1741633365825,-228.923,0.00044472,70]
[355837293,1741633365868,-414.79,0.00046123,120]
[355837294,1741633365910,-871.0,0.00049315,120]
[355837295,1741633365951,-871.0,0.00049315,120]
[355837296,1741633365988,-871.0,0.00049315,120]
[355837297,1741633366033,-871.0,0.00049315,120]
[355837298,1741633366074,-871.0,0.00049315,120]
[355837299,1741633366115,-871.0,0.00049315,120]
[355837300,1741633366157,-871.0,0.00049315,120]
[355837301,1741633366199,-871.0,0.00049315,120]
[355837302,1741633366531,-871.0,0.00049315,120]
[355837303,1741633366578,-871.0,0.00049315,120]
[355837304,1741633366626,-871.0,0.00049315,120]
[355837305,1741633366671,-871.0,0.00049315,120]
[355837306,1741633366712,-871.0,0.00049315,120]
[355837307,1741633366757,-871.0,0.00049315,120]
[355837308,1741633366799,-871.0,0.00049315,120]
[355837309,1741633366842,-871.0,0.00049315,120]
[355837310,1741633366884,-871.0,0.00049315,120]
[355837311,1741633366924,-871.0,0.00049315,120]
[355837312,1741633366964,-871.0,0.00049315,120]
[355837313,1741633367005,-871.0,0.00049315,120]
[355837314,1741633367046,-871.0,0.00049315,120]
[355837315,1741633367084,-871.0,0.00049315,120]
[355837316,1741633367123,-871.0,0.00049315,120]
[355837317,1741633367164,-871.21,0.00049315,120]
[355837318,1741633367204,-350.0,0.000494,120]
[355837319,1741633367246,-891188.14283167,0.0005,120]
[355837320,1741633367286,-2390.12228095,0.0005,120]
[355837321,1741633367327,-241.36212477,0.0005,120]
[355837322,1741633367367,-422.98200864,0.0005,120]
[355837323,1741633367409,-11716.62604802,0.0005,120]
[355837324,1741633367450,-1000.0,0.0005,120]
[355837325,1741633367490,-891.96109115,0.0005,120]
[355837326,1741633367537,-650.0,0.0005,120]
[355837327,1741633367579,-8708.53741249,0.0005,120]
[355837328,1741633367625,-1000000.0,0.0005,120]
[355837329,1741633367669,-118534.70575605,0.0005,120]
[355837330,1741633367713,-2000000.0,0.0005,120]
[355837331,1741633367758,-927454.91528183,0.0005,120]
[355837332,1741633436228,-150.0,9.562e-05,7]
[355837333,1741633444503,1000.0,8.482e-05,2]
[355837337,1741633679935,225.54,8.454e-05,2]
[355837408,1741633835141,-478.31588386,8.925e-05,2]
[355837409,1741633835156,-218.01351614,8.925e-05,2]
[355837410,1741633835166,-150.0,8.97e-05,2]
[355837411,1741633835175,-550.0,9e-05,2]
[355837412,1741633835185,-500.0,9.015e-05,2]
[355837413,1741633835194,-827.41,9.015e-05,2]
[355837414,1741633835203,-150.0,9.024e-05,2]
[355837415,1741633835213,-300.0,9.024e-05,2]
[355837416,1741633835223,-260.07916774,9.025e-05,2]
[355837417,1741633835234,-910.00000001,9.025e-05,2]
[355837418,1741633835258,-3894.14025,9.025e-05,2]
[355837419,1741633835271,-2012.01003,9.025e-05,2]
[355837420,1741633835294,-752.19999999,9.025e-05,2]
[355837421,1741633835305,-3914.45967904,9.025e-05,2]
[355837422,1741633835316,-2100.000002,9.025e-05,2]
[355837423,1741633835340,-48554.02621503,9.025e-05,2]
[355837424,1741633835351,-724.0,9.025e-05,2]
[355837425,1741633835404,-20148.4241,9.025e-05,2]
[355837426,1741633835415,-908.97359572,9.025e-05,2]
[355837429,1741633835547,-607.75,9.025e-05,2]
[355837523,1741633837715,-1690.87377652,9.025e-05,2]
[355837524,1741633837727,-403.3,9.025e-05,2]
[355837525,1741633837740,-886.15043454,9.025e-05,2]
[355837526,1741633837753,-8760.63274941,9.025e-05,2]
[355837527,1741633837764,-27.15686987,9.105e-05,2]
[355837528,1741633837776,-2249.650462,9.105e-05,2]
[355837529,1741633837788,-6240.85,9.105e-05,2]
[355837530,1741633837800,-349.82232294,9.105e-05,2]
[355837531,1741633837811,-468.0,9.105e-05,2]
[355837532,1741633837823,-350.65155863,9.105e-05,2]
[355837533,1741633837846,-282.6228348,9.105e-05,2]
[355837534,1741633837858,-317.3,9.105e-05,2]
[355837535,1741633837869,-439.59676295,9.105e-05,2]
[355837536,1741633838058,-226.86048881,9.105e-05,2]
[355837537,1741633838068,-42830.25881119,9.11e-05,2]
[355837538,1741633838080,-12056.05118881,9.11e-05,2]
[355837539,1741633838090,-712.085,9.11e-05,2]
[355837540,1741633838101,-1954.00923502,9.125e-05,2]
[355837541,1741633838142,-1138.30614815,9.125e-05,2]
[355837542,1741633838160,-1281.65701457,9.125e-05,2]
[355837543,1741633838173,-5589.68840226,9.125e-05,2]
[355837544,1741633838183,-2369.716,9.125e-05,2]
[355837545,1741633838193,-1767.9585,9.125e-05,2]
[355837546,1741633838203,-991.41558604,9.21e-05,2]
[355837547,1741633838215,-47478.98132889,9.21e-05,2]
[355837548,1741633838242,-929.4124,9.21e-05,2]
[355837549,1741633838254,-7684.00974,9.21e-05,2]
[355837550,1741633838283,-779.54,9.21e-05,2]
[355837722,1741633840349,-272.6879848,9.21e-05,2]
[355837724,1741633840362,-714.59104779,9.21e-05,2]
[355837726,1741633840374,-3906.45,9.21e-05,2]
[355837731,1741633840436,-2356.92858334,9.21e-05,2]
[355837734,1741633840448,-390.0,9.21e-05,2]
[355837736,1741633840462,-595.967625,9.21e-05,2]
[355837834,1741633843868,-178.37,8.813e-05,2]
[355837836,1741633843878,-1058.55151165,9.21e-05,2]
[355837839,1741633843891,-1748.26972137,9.21e-05,2]
[355837842,1741633843908,-333.06567659,9.21e-05,2]
[355837846,1741633843934,-238799.06505303,9.21e-05,2]
[355837849,1741633843945,-605.42330251,9.224e-05,2]
[355837851,1741633843955,-1893.0,9.225e-05,2]
[355837854,1741633843965,-2761658.46594749,9.225e-05,2]
[355837857,1741633843977,-18465.62096121,9.225e-05,2]
[355837897,1741633844457,-1146.59391037,9.225e-05,2]
[355837898,1741633844469,-1293.18,9.225e-05,2]
[355837899,1741633844522,-154.14122404,9.225e-05,2]
[355837900,1741633844534,-354.54335001,9.225e-05,2]
[355837931,1741633846003,-269.99001492,9.225e-05,2]
[355837932,1741633846015,-3188.55,9.225e-05,2]
[355837933,1741633846053,-7922.20527457,9.225e-05,2]
[355837934,1741633846065,-3360.41727972,9.225e-05,2]
[355837935,1741633846093,-16875.71452358,9.225e-05,2]
[355837936,1741633846107,-377442.05641392,9.225e-05,2]
[355837937,1741633846119,-460.89494999,9.225e-05,2]
[355837938,1741633846132,-39471.21949982,9.225e-05,2]
[355837939,1741633846143,-782.89211,9.225e-05,2]
[355837940,1741633846160,-7834.87167474,9.225e-05,2]
[355837941,1741633846172,-369084.52727753,9.225e-05,2]
[355837942,1741633846181,-154.01,9.23e-05,2]
[355837943,1741633846191,-12287.17297376,9.239e-05,2]
[355837944,1741633846200,-156.94,9.262e-05,2]
[355837945,1741633846211,-154.01,9.265e-05,2]
[355837946,1741633846221,-156.94,9.368e-05,2]
[355837947,1741633846230,-1000.0,9.4e-05,2]
[355837948,1741633846240,-1000.0,9.5e-05,2]
[355837949,1741633846250,-1000.0,9.542e-05,2]
[355837951,1741633846259,-150.0,9.562e-05,7]
[355837953,1741633846269,-1000.0,9.6e-05,2]
[355837954,1741633846279,-150.0,9.616e-05,2]
[355837955,1741633846289,-3932.0,9.616e-05,2]
[355837957,1741633846299,-1012.0,9.616e-05,2]
[355837958,1741633846308,-1113.0,9.616e-05,2]
[355837959,1741633846319,-550.0,9.691e-05,2]
[355837960,1741633846328,-1000.0,9.7e-05,2]
[355837961,1741633846338,-550.0,9.721e-05,2]
[355837962,1741633846347,-150.934,9.768e-05,2]
[355837963,1741633846357,-150.0,9.768e-05,2]
[355837964,1741633846367,-189.04,9.768e-05,2]
[355837965,1741633846376,-152.467,9.768e-05,2]
[355837966,1741633846386,-150.036,9.768e-05,2]
[355837967,1741633846395,-214.195,9.768e-05,2]
[355837968,1741633846409,-270.574,9.768e-05,2]
[355837970,1741633846419,-281.276,9.768e-05,2]
[355837971,1741633846429,-250.0,9.768e-05,2]
[355837972,1741633846438,-248.312,9.768e-05,2]
[355837973,1741633846447,-3403.0,9.768e-05,2]
[355837974,1741633846457,-160.65,9.797e-05,2]
[355837975,1741633846468,-1152.0,9.8e-05,2]
[355837976,1741633846479,-250.0,9.801e-05,2]
[355837977,1741633846491,-150.0,9.818e-05,2]
[355837978,1741633846501,-150.0,9.818e-05,2]
[355837979,1741633846512,-255.0,9.927e-05,2]
[355837980,1741633846523,-420.0,9.927e-05,2]
[355837981,1741633846533,-5800.0,9.983e-05,2]
[355837982,1741633846543,-51096.10800807,9.99e-05,2]
[355837983,1741633846554,-5800.0,9.992e-05,2]
[355837984,1741633846564,-7601.38567073,9.999e-05,2]
[355837985,1741633846574,-245.52491238,0.0001,2]
[355837986,1741633846584,-51207.65201082,0.0001,2]
[355837987,1741633846593,-69932.67531317,0.0001,2]
[355837988,1741633846605,-1080.68123411,0.0001,2]
[355837989,1741633846981,-327.01065531,9.6e-05,2]
[355837990,1741633846992,-950.98934469,9.6e-05,2]
[355837991,1741633847002,-4512.01065528,0.0001,2]
[355837992,1741633847013,-274.78426952,0.0001,2]
[355837993,1741633847025,-7816.2084,0.0001,2]
[355837994,1741633847305,-284.57999698,0.0001,2]
[355837995,1741633847317,-261.00000001,0.0001,2]
[355837996,1741633847328,-2315.33468712,0.0001,2]
[355837997,1741633847340,-117241.09174022,0.0001,2]
[355837998,1741633847368,-149216.07081514,0.0001,2]
[355837999,1741633847459,-187541.91534551,0.0001,2]
[355838000,1741633847470,-865.8292649,0.0001,2]
[355838001,1741633847482,-397.44945778,0.0001,2]
[355838002,1741633847794,-6932.99808245,0.0001,2]
[355838003,1741633847806,-424.07077333,0.0001,2]
[355838016,1741634115960,959.23,8.219e-05,2]
[355838017,1741634408563,500.0,8.796e-05,2]
[355838018,1741634420940,532.84,8.796e-05,2]
[355838019,1741634454841,-500.0,0.00027664,120]
[355838020,1741634454883,-500.0,0.00027664,120]
[355838021,1741634454927,-500.0,0.00027664,120]
[355838022,1741634454976,-500.0,0.00027664,120]
[355838023,1741634455021,-500.0,0.00027664,120]
[355838024,1741634455062,-500.0,0.00027664,120]
[355838025,1741634455101,-500.0,0.00027664,120]
[355838026,1741634455141,-475.82852601,0.00027664,120]
[355838027,1741634455182,-500.0,0.00027664,120]
[355838028,1741634455226,-500.0,0.00027664,120]
[355838029,1741634455264,-500.0,0.00027664,120]
[355838030,1741634455303,-500.0,0.00027664,120]
[355838031,1741634455342,-456.38223157,0.00027664,120]
[355838032,1741634455381,-500.0,0.00027664,120]
[355838033,1741634455422,-500.0,0.00027664,120]
[355838034,1741634455462,-500.0,0.00027664,120]
[355838035,1741634455505,-507.78803908,0.00027664,120]
[355838036,1741634455545,-500.0,0.00027664,120]
[355838037,1741634455585,-500.0,0.00027664,120]
[355838038,1741634455626,-500.0,0.00027664,120]
[355838039,1741634455665,-500.0,0.00027664,120]
[355838040,1741634455705,-498.2731342,0.00027664,120]
[355838041,1741634455747,-500.0,0.00027664,120]
[355838042,1741634455786,-500.0,0.00027664,120]
[355838043,1741634455825,-500.0,0.00027664,120]
[355838044,1741634455863,-500.0,0.00027664,120]
[355838045,1741634455902,-500.0,0.00027664,120]
[355838046,1741634455944,-500.0,0.00027664,120]
[355838047,1741634455983,-500.0,0.00027664,120]
[355838048,1741634456024,-497.81415793,0.00027664,120]
[355838049,1741634456064,-500.0,0.00027664,120]
[355838050,1741634456104,-500.0,0.00027664,120]
[355838051,1741634456143,-516.76831472,0.00027664,120]
[355838052,1741634456182,-500.0,0.00027664,120]
[355838053,1741634456221,-500.0,0.00027664,120]
[355838054,1741634456257,-500.0,0.00027664,120]
[355838055,1741634456295,-500.0,0.00027664,120]
[355838056,1741634456332,-549.20246669,0.00027664,120]
[355838057,1741634456370,-500.0,0.00027664,120]
[355838058,1741634456407,-500.0,0.00027664,120]
[355838059,1741634456444,-500.0,0.00027664,120]
[355838060,1741634456481,-500.0,0.00027664,120]
[355838061,1741634456517,-500.0,0.00027664,120]
[355838062,1741634456552,-428.1791229,0.00027664,120]
[355838063,1741634456943,-2389.116299,0.00027664,120]
[355838064,1741634456987,-2389.116299,0.00027664,120]
[355838065,1741634457028,-2389.116299,0.00027664,120]
[355838066,1741634457067,-2389.116299,0.00027664,120]
[355838067,1741634457111,-2389.116299,0.00027664,120]
[355838068,1741634457149,-2389.116299,0.00027664,120]
[355838069,1741634457188,-2389.116299,0.00027664,120]
[355838070,1741634457229,-2389.116299,0.00027664,120]
[355838071,1741634457266,-2389.116299,0.00027664,120]
[355838072,1741634457303,-2389.116299,0.00027664,120]
[355838073,1741634457341,-2389.116299,0.00027664,120]
[355838074,1741634457378,-2389.116299,0.00027664,120]
[355838075,1741634457415,-2389.116299,0.00027664,120]
[355838076,1741634457454,-2389.116299,0.00027664,120]
[355838077,1741634457497,-2389.116299,0.00027664,120]
[355838078,1741634457537,-2389.116299,0.00027664,120]
[355838079,1741634457577,-2389.116299,0.00027664,120]
[355838080,1741634457616,-2389.116299,0.00027664,120]
[355838081,1741634457658,-2389.116299,0.00027664,120]
[355838082,1741634457696,-2389.116299,0.00027664,120]
[355838083,1741634457734,-2389.116299,0.00027664,120]
[355838084,1741634457772,-2389.116299,0.00027664,120]
[355838085,1741634457812,-2389.116299,0.00027664,120]
[355838086,1741634457854,-2389.116299,0.00027664,120]
[355838087,1741634457893,-500.0,0.00027664,120]
[355838088,1741634457938,-500.0,0.00027664,120]
[355838089,1741634457980,-500.0,0.00027664,120]
[355838090,1741634458020,-500.0,0.00027664,120]
[355838091,1741634458059,-500.0,0.00027664,120]
[355838092,1741634458101,-3588.134112,0.00027664,120]
[355838093,1741634458143,-3588.134112,0.00027664,120]
[355838094,1741634458189,-3588.134112,0.00027664,120]
[355838095,1741634458231,-3588.134112,0.00027664,120]
[355838096,1741634458270,-3588.134112,0.00027664,120]
[355838097,1741634458308,-3588.134112,0.00027664,120]
[355838098,1741634458346,-3588.134112,0.00027664,120]
[355838099,1741634458386,-3588.134112,0.00027664,120]
[355838100,1741634458425,-3588.134112,0.00027664,120]
[355838101,1741634458462,-3588.134112,0.00027664,120]
[355838102,1741634458504,-3588.134112,0.00027664,120]
[355838103,1741634458542,-3588.134112,0.00027664,120]
[355838104,1741634458579,-3588.134112,0.00027664,120]
[355838105,1741634458615,-3588.134112,0.00027664,120]
[355838106,1741634458653,-3588.134112,0.00027664,120]
[355838107,1741634458690,-3588.134112,0.00027664,120]
[355838108,1741634458729,-3588.134112,0.00027664,120]
[355838109,1741634458767,-3588.134112,0.00027664,120]
[355838110,1741634458803,-151.672402,0.00027664,120]
[355838111,1741634458840,-3588.134112,0.00027664,120]
[355838112,1741634458877,-151.672402,0.00027664,120]
[355838113,1741634458916,-3588.134112,0.00027664,120]
[355838114,1741634458952,-151.672402,0.00027664,120]
[355838115,1741634458991,-151.672402,0.00027664,120]
[355838116,1741634459030,-3588.134112,0.00027664,120]
[355838117,1741634459067,-151.672402,0.00027664,120]
[355838118,1741634459106,-3588.134112,0.00027664,120]
[355838119,1741634459144,-151.672402,0.00027664,120]
[355838120,1741634459185,-3588.134112,0.00027664,120]
[355838121,1741634459228,-151.672402,0.00027664,120]
[355838122,1741634459268,-3588.134112,0.00027664,120]
[355838123,1741634459305,-151.672402,0.00027664,120]
[355838124,1741634459342,-151.672402,0.00027664,120]
[355838125,1741634459380,-151.672402,0.00027664,120]
[355838126,1741634459418,-151.672402,0.00027664,120]
[355838127,1741634459455,-500.0,0.00027664,120]
[355838128,1741634459497,-151.672402,0.00027664,120]
[355838129,1741634459536,-500.0,0.00027664,120]
[355838130,1741634459578,-151.672402,0.00027664,120]
[355838131,1741634459618,-500.0,0.00027664,120]
[355838132,1741634459658,-151.672402,0.00027664,120]
[355838133,1741634459696,-500.0,0.00027664,120]
[355838134,1741634459733,-500.0,0.00027664,120]
[355838135,1741634459770,-500.0,0.00027664,120]
[355838136,1741634459806,-500.0,0.00027664,120]
[355838137,1741634459844,-158.000714,0.00027664,120]
[355838138,1741634459881,-158.000714,0.00027664,120]
[355838139,1741634459919,-158.000714,0.00027664,120]
[355838140,1741634459956,-158.000714,0.00027664,120]
[355838141,1741634459996,-158.000714,0.00027664,120]
[355838142,1741634460034,-158.000714,0.00027664,120]
[355838143,1741634460073,-158.000714,0.00027664,120]
[355838144,1741634460114,-158.000714,0.00027664,120]
[355838145,1741634460156,-158.000714,0.00027664,120]
[355838146,1741634460201,-158.000714,0.00027664,120]
[355838147,1741634460245,-158.000714,0.00027664,120]
[355838148,1741634460285,-158.000714,0.00027664,120]
[355838149,1741634460324,-158.000714,0.00027664,120]
[355838150,1741634460366,-158.000714,0.00027664,120]
[355838151,1741634460410,-158.000714,0.00027664,120]
[355838152,1741634460450,-500.0,0.00027664,120]
[355838153,1741634460489,-500.0,0.00027664,120]
[355838154,1741634460529,-500.0,0.00027664,120]
[355838155,1741634460568,-500.0,0.00027664,120]
[355838156,1741634460607,-556.26346004,0.00027664,120]
[355838157,1741634460647,-500.0,0.00027664,120]
[355838158,1741634460687,-500.0,0.00027664,120]
[355838159,1741634460728,-500.0,0.00027664,120]
[355838160,1741634460769,-500.0,0.00027664,120]
[355838161,1741634460809,-500.0,0.00027664,120]
[355838162,1741634460849,-475.92424272,0.00027664,120]
[355838163,1741634460890,-500.0,0.00027664,120]
[355838164,1741634460932,-500.0,0.00027664,120]
[355838165,1741634460978,-500.0,0.00027664,120]
[355838166,1741634461022,-500.0,0.00027664,120]
[355838167,1741634461304,-500.0,0.00027664,120]
[355838170,1741634461344,-500.0,0.00027664,120]
[355838171,1741634461384,-332.65110076,0.00027664,120]
[355838172,1741634461424,-500.0,0.00027664,120]
[355838173,1741634461466,-500.0,0.00027664,120]
[355838174,1741634461512,-500.0,0.00027664,120]
[355838175,1741634461554,-500.0,0.00027664,120]
[355838176,1741634461594,-528.86697788,0.00027664,120]
[355838177,1741634461634,-500.0,0.00027664,120]
[355838178,1741634461673,-500.0,0.00027664,120]
[355838179,1741634461710,-500.0,0.00027664,120]
[355838180,1741634461753,-500.0,0.00027664,120]
[355838181,1741634461795,-500.0,0.00027664,120]
[355838182,1741634461836,-500.0,0.00027664,120]
[355838183,1741634461876,-500.0,0.00027664,120]
[355838184,1741634461916,-500.0,0.00027664,120]
[355838185,1741634461955,-500.0,0.00027664,120]
[355838186,1741634461996,-513.07802977,0.00027664,120]
[355838187,1741634462034,-541.32,0.00027664,120]
[355838188,1741634462073,-500.0,0.00027664,120]
[355838189,1741634462113,-541.32,0.00027664,120]
[355838190,1741634462153,-500.0,0.00027664,120]
[355838191,1741634462195,-541.32,0.00027664,120]
[355838192,1741634462235,-500.0,0.00027664,120]
[355838193,1741634462276,-541.32,0.00027664,120]
[355838194,1741634462318,-500.0,0.00027664,120]
[355838195,1741634462359,-500.0,0.00027664,120]
[355838196,1741634462402,-541.32,0.00027664,120]
[355838197,1741634462446,-500.0,0.00027664,120]
[355838198,1741634462491,-541.32,0.00027664,120]
[355838199,1741634462532,-500.0,0.00027664,120]
[355838200,1741634462574,-541.32,0.00027664,120]
[355838201,1741634462614,-500.0,0.00027664,120]
[355838202,1741634462653,-541.32,0.00027664,120]
[355838203,1741634462693,-500.0,0.00027664,120]
[355838204,1741634462732,-541.32,0.00027664,120]
[355838205,1741634462772,-500.0,0.00027664,120]
[355838206,1741634462811,-541.32,0.00027664,120]
[355838207,1741634462850,-500.0,0.00027664,120]
[355838208,1741634462888,-541.32,0.00027664,120]
[355838209,1741634462928,-500.0,0.00027664,120]
[355838210,1741634462966,-541.32,0.00027664,120]
[355838211,1741634463006,-500.0,0.00027664,120]
[355838212,1741634463044,-541.32,0.00027664,120]
[355838213,1741634463082,-153.12243126,0.00027664,120]
[355838214,1741634463123,-541.32,0.00027664,120]
[355838215,1741634463166,-541.32,0.00027664,120]
[355838216,1741634463208,-541.32,0.00027664,120]
[355838217,1741634463250,-541.32,0.00027664,120]
[355838218,1741634463288,-500.0,0.00027664,120]
[355838219,1741634463327,-541.32,0.00027664,120]
[355838220,1741634463368,-500.0,0.00027664,120]
[355838221,1741634463410,-541.32,0.00027664,120]
[355838222,1741634463450,-500.0,0.00027664,120]
[355838223,1741634463492,-541.32,0.00027664,120]
[355838224,1741634463535,-500.0,0.00027664,120]
[355838225,1741634463576,-500.0,0.00027664,120]
[355838226,1741634463617,-541.32,0.00027664,120]
[355838227,1741634463660,-500.0,0.00027664,120]
[355838228,1741634463703,-500.0,0.00027664,120]
[355838229,1741634463744,-541.32,0.00027664,120]
[355838230,1741634463786,-500.0,0.00027664,120]
[355838231,1741634463826,-533.8054801,0.00027664,120]
[355838232,1741634463865,-541.32,0.00027664,120]
[355838233,1741634463903,-320.26005384,0.00027664,120]
[355838234,1741634463944,-541.3459904,0.00027664,120]
[355838235,1741634463984,-500.0,0.00027664,120]
[355838236,1741634464027,-500.0,0.00027664,120]
[355838237,1741634464067,-500.0,0.00027664,120]
[355838238,1741634464107,-500.0,0.00027664,120]
[355838239,1741634464148,-500.0,0.00027664,120]
[355838240,1741634464190,-500.0,0.00027664,120]
[355838241,1741634464231,-522.50844344,0.00027664,120]
[355838242,1741634464270,-500.0,0.00027664,120]
[355838243,1741634464312,-500.0,0.00027664,120]
[355838244,1741634464351,-500.0,0.00027664,120]
[355838245,1741634464391,-500.0,0.00027664,120]
[355838246,1741634464431,-500.0,0.00027664,120]
[355838247,1741634464482,-500.0,0.00027664,120]
[355838248,1741634464522,-500.0,0.00027664,120]
[355838249,1741634464560,-500.0,0.00027664,120]
[355838250,1741634464598,-257.06848958,0.00027664,120]
[355838251,1741634464637,-500.0,0.00027664,120]
[355838252,1741634464676,-500.0,0.00027664,120]
[355838253,1741634464715,-500.0,0.00027664,120]
[355838254,1741634464757,-500.0,0.00027664,120]
[355838255,1741634464797,-500.0,0.00027664,120]
[355838256,1741634464836,-500.0,0.00027664,120]
[355838257,1741634464876,-580.03,0.00027664,120]
[355838258,1741634464918,-509.68529075,0.00027664,120]
[355838259,1741634464958,-500.0,0.00027664,120]
[355838260,1741634465001,-580.03,0.00027664,120]
[355838261,1741634465043,-580.03,0.00027664,120]
[355838262,1741634465082,-580.03,0.00027664,120]
[355838263,1741634465121,-580.03,0.00027664,120]
[355838264,1741634465161,-580.03,0.00027664,120]
[355838265,1741634465201,-580.03,0.00027664,120]
[355838266,1741634465242,-580.03,0.00027664,120]
[355838267,1741634465283,-500.0,0.00027664,120]
[355838268,1741634465320,-500.0,0.00027664,120]
[355838269,1741634465361,-580.03,0.00027664,120]
[355838270,1741634465405,-500.0,0.00027664,120]
[355838271,1741634465450,-580.03,0.00027664,120]
[355838272,1741634465755,-500.0,0.00027664,120]
[355838273,1741634465800,-580.03,0.00027664,120]
[355838274,1741634465845,-500.0,0.00027664,120]
[355838275,1741634465892,-580.03,0.00027664,120]
[355838276,1741634465937,-580.03,0.00027664,120]
[355838277,1741634465983,-500.0,0.00027664,120]
[355838278,1741634466026,-580.03,0.00027664,120]
[355838279,1741634466066,-500.0,0.00027664,120]
[355838280,1741634466108,-580.03,0.00027664,120]
[355838281,1741634466148,-500.0,0.00027664,120]
[355838282,1741634466190,-500.0,0.00027664,120]
[355838283,1741634466232,-500.0,0.00027664,120]
[355838284,1741634466270,-535.51831797,0.00027664,120]
[355838285,1741634466309,-580.03,0.00027664,120]
[355838286,1741634466347,-500.0,0.00027664,120]
[355838287,1741634466386,-580.03,0.00027664,120]
[355838288,1741634466428,-500.0,0.00027664,120]
[355838289,1741634466467,-580.03,0.00027664,120]
[355838290,1741634466510,-500.0,0.00027664,120]
[355838291,1741634466550,-580.03,0.00027664,120]
[355838292,1741634466588,-500.0,0.00027664,120]
[355838293,1741634466625,-500.0,0.00027664,120]
[355838294,1741634466662,-580.03,0.00027664,120]
[355838295,1741634466698,-500.0,0.00027664,120]
[355838296,1741634466733,-580.03,0.00027664,120]
[355838297,1741634466770,-296.29007482,0.00027664,120]
[355838298,1741634466807,-580.03,0.00027664,120]
[355838299,1741634466845,-580.03,0.00027664,120]
[355838300,1741634466887,-580.14212842,0.00027664,120]
[355838301,1741634466930,-500.0,0.00027664,120]
[355838302,1741634466971,-500.0,0.00027664,120]
[355838303,1741634467017,-500.0,0.00027664,120]
[355838304,1741634467058,-500.0,0.00027664,120]
[355838305,1741634467103,-500.0,0.00027664,120]
[355838306,1741634467142,-500.0,0.00027664,30]
[355838307,1741634467182,-500.0,0.00027664,120]
[355838308,1741634467222,-500.0,0.00027664,30]
[355838309,1741634467263,-500.0,0.00027664,120]
[355838310,1741634467300,-500.0,0.00027664,120]
[355838311,1741634467335,-500.0,0.00027664,30]
[355838312,1741634467372,-500.0,0.00027664,120]
[355838313,1741634467409,-500.0,0.00027664,120]
[355838314,1741634467446,-500.0,0.00027664,120]
[355838315,1741634467483,-500.0,0.00027664,120]
[355838316,1741634467521,-500.0,0.00027664,30]
[355838317,1741634467558,-500.0,0.00027664,120]
[355838318,1741634467597,-500.0,0.00027664,30]
[355838319,1741634467638,-500.0,0.00027664,120]
[355838320,1741634467679,-500.0,0.00027664,120]
[355838321,1741634467721,-500.0,0.00027664,30]
[355838322,1741634467769,-500.0,0.00027664,120]
[355838323,1741634467811,-500.0,0.00027664,120]
[355838324,1741634467852,-500.0,0.00027664,30]
[355838325,1741634467893,-500.0,0.00027664,120]
[355838326,1741634467934,-500.0,0.00027664,120]
[355838327,1741634467973,-500.0,0.00027664,30]
[355838328,1741634468014,-500.0,0.00027664,120]